[Event "Titled Tuesday Blitz November 14 Late 2023"]
[White "Gurevich, Dmitry"]
[Black "Brodsky, David"]
[WhiteFideId "2000407"]
[BlackFideId "2073250"]
[WhiteElo "2450"]
[BlackElo "2792"]
[Result "0-1"]
[Round "8"]
[TimeControl "180+1"]
[Date "2023.11.14"]
[WhiteClock "0:00:07"]
[BlackClock "0:00:06"]
[Board "28"]

1. d4 {[%clk 0:03:00]}  Nf6 {[%clk 0:02:59]} 2. c4 {[%clk 0:02:59]}  e6 {[%clk 0:03:00]} 3. Nc3 {[%clk 0:02:56]}  Bb4 {[%clk 0:02:59]} 4. a3 {[%clk 0:02:55]}  Bxc3+ {[%clk 0:02:59]} 5. bxc3 {[%clk 0:02:55]}  c5 {[%clk 0:03:00]} 6. e3 {[%clk 0:02:54]}  Nc6 {[%clk 0:02:51]} 7. Bd3 {[%clk 0:02:52]}  d6 {[%clk 0:02:51]} 8. Ne2 {[%clk 0:02:49]}  b6 {[%clk 0:02:47]} 9. e4 {[%clk 0:02:43]}  e5 {[%clk 0:02:45]} 10. f3 {[%clk 0:02:35]}  Qd7 {[%clk 0:02:22]} 11. Bg5 {[%clk 0:02:31]}  Ba6 {[%clk 0:02:05]} 12. Bxf6 {[%clk 0:02:26]}  gxf6 {[%clk 0:02:05]} 13. O-O {[%clk 0:02:12]}  h5 {[%clk 0:01:44]} 14. d5 {[%clk 0:02:09]}  Na5 {[%clk 0:01:42]} 15. Ng3 {[%clk 0:02:08]}  Bxc4 {[%clk 0:01:34]} 16. Bxc4 {[%clk 0:02:04]}  Nxc4 {[%clk 0:01:34]} 17. Nf5 {[%clk 0:02:04]}  Rg8 {[%clk 0:01:24]} 18. Qe2 {[%clk 0:01:55]}  Na5 {[%clk 0:01:23]} 19. a4 {[%clk 0:01:50]}  Rg5 {[%clk 0:01:14]} 20. Qb5 {[%clk 0:01:45]}  Rxf5 {[%clk 0:01:09]} 21. exf5 {[%clk 0:01:41]}  Ke7 {[%clk 0:00:54]} 22. Qxd7+ {[%clk 0:01:39]}  Kxd7 {[%clk 0:00:55]} 23. Rfe1 {[%clk 0:01:29]}  Rg8 {[%clk 0:00:54]} 24. h4 {[%clk 0:01:26]}  Nb3 {[%clk 0:00:46]} 25. Ra2 {[%clk 0:01:22]}  c4 {[%clk 0:00:45]} 26. Re4 {[%clk 0:01:20]}  Rc8 {[%clk 0:00:40]} 27. g4 {[%clk 0:01:15]}  Na5 {[%clk 0:00:38]} 28. Kh2 {[%clk 0:01:01]}  Ke7 {[%clk 0:00:35]} 29. Rg2 {[%clk 0:00:56]}  Rh8 {[%clk 0:00:33]} 30. g5 {[%clk 0:00:54]}  fxg5 {[%clk 0:00:27]} 31. hxg5 {[%clk 0:00:51]}  a6 {[%clk 0:00:27]} 32. f6+ {[%clk 0:00:47]}  Kf8 {[%clk 0:00:24]} 33. Rh4 {[%clk 0:00:46]}  Nb3 {[%clk 0:00:17]} 34. f4 {[%clk 0:00:40]}  e4 {[%clk 0:00:12]} 35. f5 {[%clk 0:00:40]}  Nc5 {[%clk 0:00:10]} 36. g6 {[%clk 0:00:39]}  Rh6 {[%clk 0:00:11]} 37. Rg5 {[%clk 0:00:31]}  Nd7 {[%clk 0:00:11]} 38. Rgxh5 {[%clk 0:00:19]}  Rxh5 {[%clk 0:00:10]} 39. Rxh5 {[%clk 0:00:19]}  Nxf6 {[%clk 0:00:10]} 40. Rh7 {[%clk 0:00:17]}  Nxh7 {[%clk 0:00:08]} 41. gxh7 {[%clk 0:00:16]}  Kg7 {[%clk 0:00:09]} 42. Kg3 {[%clk 0:00:15]}  Kxh7 {[%clk 0:00:06]} 43. Kf4 {[%clk 0:00:07]}  Kh6 {[%clk 0:00:06]} 0-1


[Site "https://www.chess.com"]

[Event "Titled Tuesday Blitz November 14 Late 2023"]
[White "Ivic, Velimir"]
[Black "Chylewski, Patryk"]
[WhiteFideId "950122"]
[BlackFideId "1186191"]
[WhiteElo "2815"]
[BlackElo "2563"]
[Result "1-0"]
[Round "8"]
[TimeControl "180+1"]
[Date "2023.11.14"]
[WhiteClock "0:00:16"]
[BlackClock "0:00:04"]
[Board "32"]

1. Nf3 {[%clk 0:02:54]}  d5 {[%clk 0:02:59]} 2. g3 {[%clk 0:02:53]}  c6 {[%clk 0:02:59]} 3. Bg2 {[%clk 0:02:53]}  Bg4 {[%clk 0:02:59]} 4. O-O {[%clk 0:02:49]}  Nd7 {[%clk 0:02:59]} 5. h3 {[%clk 0:02:48]}  Bh5 {[%clk 0:02:59]} 6. c4 {[%clk 0:02:48]}  Ngf6 {[%clk 0:02:58]} 7. d3 {[%clk 0:02:46]}  e6 {[%clk 0:02:55]} 8. Qb3 {[%clk 0:02:44]}  Qb6 {[%clk 0:02:53]} 9. Be3 {[%clk 0:02:43]}  Qxb3 {[%clk 0:02:53]} 10. axb3 {[%clk 0:02:44]}  a6 {[%clk 0:02:53]} 11. g4 {[%clk 0:02:38]}  Bg6 {[%clk 0:02:52]} 12. Nh4 {[%clk 0:02:39]}  Bc5 {[%clk 0:02:20]} 13. Bd2 {[%clk 0:02:30]}  O-O-O {[%clk 0:00:54]} 14. Nc3 {[%clk 0:02:21]}  Nb6 {[%clk 0:00:48]} 15. Rfc1 {[%clk 0:02:02]}  dxc4 {[%clk 0:00:40]} 16. Na4 {[%clk 0:01:29]}  Nxa4 {[%clk 0:00:33]} 17. Rxa4 {[%clk 0:01:29]}  cxd3 {[%clk 0:00:25]} 18. e3 {[%clk 0:01:07]}  Be7 {[%clk 0:00:21]} 19. g5 {[%clk 0:00:59]}  Nd5 {[%clk 0:00:15]} 20. Nf3 {[%clk 0:00:59]}  Nb6 {[%clk 0:00:12]} 21. Raa1 {[%clk 0:00:51]}  Be4 {[%clk 0:00:10]} 22. Ba5 {[%clk 0:00:50]}  Bxf3 {[%clk 0:00:04]} 23. Bxf3 {[%clk 0:00:51]}  d2 {[%clk 0:00:04]} 24. Rd1 {[%clk 0:00:50]}  Nd5 {[%clk 0:00:01]} 25. Bxd8 {[%clk 0:00:49]}  Rxd8 {[%clk 0:00:02]} 26. Rxd2 {[%clk 0:00:45]}  Bxg5 {[%clk 0:00:03]} 27. Kf1 {[%clk 0:00:44]}  Re8 {[%clk 0:00:03]} 28. Ke2 {[%clk 0:00:43]}  Kc7 {[%clk 0:00:03]} 29. Ra4 {[%clk 0:00:40]}  Bf6 {[%clk 0:00:03]} 30. h4 {[%clk 0:00:39]}  h6 {[%clk 0:00:02]} 31. h5 {[%clk 0:00:39]}  Ne7 {[%clk 0:00:02]} 32. Be4 {[%clk 0:00:39]}  Nd5 {[%clk 0:00:02]} 33. Rc4 {[%clk 0:00:36]}  Nb6 {[%clk 0:00:02]} 34. Rc1 {[%clk 0:00:36]}  Nd7 {[%clk 0:00:02]} 35. f4 {[%clk 0:00:36]}  Nb6 {[%clk 0:00:02]} 36. Kf3 {[%clk 0:00:32]}  Rd8 {[%clk 0:00:03]} 37. Rxd8 {[%clk 0:00:30]}  Bxd8 {[%clk 0:00:04]} 38. Bh7 {[%clk 0:00:28]}  Bf6 {[%clk 0:00:04]} 39. Bg8 {[%clk 0:00:25]}  Bxb2 {[%clk 0:00:03]} 40. Rd1 {[%clk 0:00:26]}  Nd5 {[%clk 0:00:01]} 41. Bxf7 {[%clk 0:00:26]}  e5 {[%clk 0:00:01]} 42. Bxd5 {[%clk 0:00:22]}  cxd5 {[%clk 0:00:02]} 43. Rxd5 {[%clk 0:00:20]}  exf4 {[%clk 0:00:02]} 44. Kxf4 {[%clk 0:00:20]}  Kc6 {[%clk 0:00:03]} 45. e4 {[%clk 0:00:21]}  Bf6 {[%clk 0:00:02]} 46. Rd3 {[%clk 0:00:19]}  b5 {[%clk 0:00:02]} 47. e5 {[%clk 0:00:19]}  Bg5+ {[%clk 0:00:02]} 48. Kf5 {[%clk 0:00:19]}  a5 {[%clk 0:00:03]} 49. e6 {[%clk 0:00:20]}  a4 {[%clk 0:00:02]} 50. bxa4 {[%clk 0:00:20]}  bxa4 {[%clk 0:00:03]} 51. Rg3 {[%clk 0:00:20]}  Bf6 {[%clk 0:00:03]} 52. Kg6 {[%clk 0:00:18]}  Kb5 {[%clk 0:00:02]} 53. Kf7 {[%clk 0:00:18]}  Kb4 {[%clk 0:00:03]} 54. e7 {[%clk 0:00:11]}  Bxe7 {[%clk 0:00:03]} 55. Kxe7 {[%clk 0:00:12]}  a3 {[%clk 0:00:03]} 56. Kf7 {[%clk 0:00:12]}  a2 {[%clk 0:00:03]} 57. Rg1 {[%clk 0:00:13]}  Kb3 {[%clk 0:00:04]} 58. Kxg7 {[%clk 0:00:14]}  Kb2 {[%clk 0:00:04]} 59. Kxh6 {[%clk 0:00:14]}  a1=Q {[%clk 0:00:05]} 60. Rxa1 {[%clk 0:00:15]}  Kxa1 {[%clk 0:00:04]} 61. Kg6 {[%clk 0:00:16]} 1-0


[Site "https://www.chess.com"]

[Event "Titled Tuesday Blitz November 14 Late 2023"]
[White "Maksimovic, Bojan"]
[Black "Weimarraner"]
[WhiteFideId "14408120"]
[WhiteElo "2786"]
[BlackElo "2545"]
[Result "0-1"]
[Round "8"]
[TimeControl "180+1"]
[Date "2023.11.14"]
[WhiteClock "0:00:52"]
[BlackClock "0:00:35"]
[Board "33"]

1. Nf3 {[%clk 0:03:00]}  Nf6 {[%clk 0:02:59]} 2. g3 {[%clk 0:03:00]}  g6 {[%clk 0:03:00]} 3. Bg2 {[%clk 0:03:01]}  Bg7 {[%clk 0:03:00]} 4. O-O {[%clk 0:03:02]}  c5 {[%clk 0:03:00]} 5. c3 {[%clk 0:03:03]}  O-O {[%clk 0:03:00]} 6. Qc2 {[%clk 0:03:03]}  Qc7 {[%clk 0:02:59]} 7. d3 {[%clk 0:03:02]}  Nc6 {[%clk 0:02:57]} 8. Nbd2 {[%clk 0:03:02]}  d5 {[%clk 0:02:57]} 9. e4 {[%clk 0:03:02]}  e6 {[%clk 0:02:55]} 10. Re1 {[%clk 0:03:02]}  Nd7 {[%clk 0:02:54]} 11. exd5 {[%clk 0:02:57]}  exd5 {[%clk 0:02:55]} 12. Nf1 {[%clk 0:02:58]}  Nde5 {[%clk 0:02:45]} 13. Bf4 {[%clk 0:02:52]}  Be6 {[%clk 0:02:30]} 14. Nxe5 {[%clk 0:02:43]}  Bxe5 {[%clk 0:02:27]} 15. Rxe5 {[%clk 0:02:35]}  Nxe5 {[%clk 0:02:27]} 16. Qe2 {[%clk 0:02:30]}  f6 {[%clk 0:02:17]} 17. d4 {[%clk 0:02:30]}  cxd4 {[%clk 0:02:18]} 18. cxd4 {[%clk 0:02:29]}  Qc4 {[%clk 0:02:18]} 19. Qe3 {[%clk 0:01:52]}  g5 {[%clk 0:02:10]} 20. Bxe5 {[%clk 0:01:52]}  fxe5 {[%clk 0:02:05]} 21. Qxg5+ {[%clk 0:01:50]}  Kf7 {[%clk 0:02:00]} 22. Qxe5 {[%clk 0:01:48]}  Rfe8 {[%clk 0:01:49]} 23. Ne3 {[%clk 0:01:43]}  Qe2 {[%clk 0:01:28]} 24. Qf4+ {[%clk 0:01:37]}  Kg8 {[%clk 0:01:26]} 25. Qg5+ {[%clk 0:01:36]}  Kh8 {[%clk 0:01:20]} 26. Qf6+ {[%clk 0:01:24]}  Kg8 {[%clk 0:01:20]} 27. Rc1 {[%clk 0:01:06]}  Qh5 {[%clk 0:00:47]} 28. Rc7 {[%clk 0:01:04]}  Qg6 {[%clk 0:00:46]} 29. Nxd5 {[%clk 0:00:56]}  Qb1+ {[%clk 0:00:39]} 30. Bf1 {[%clk 0:00:52]}  Qxf1+ {[%clk 0:00:34]} 31. Kxf1 {[%clk 0:00:52]}  Bh3+ {[%clk 0:00:35]} 32. Kg1 {[%clk 0:00:52]}  Re1# {[%clk 0:00:35]} 0-1


[Site "https://www.chess.com"]

[Event "Titled Tuesday Blitz November 14 Late 2023"]
[White "Bjelobrk, Igor"]
[Black "Kanyamarala, Trisha"]
[WhiteFideId "4300726"]
[BlackFideId "45004722"]
[WhiteElo "2676"]
[BlackElo "2512"]
[Result "1-0"]
[Round "8"]
[TimeControl "180+1"]
[Date "2023.11.14"]
[WhiteClock "0:01:21"]
[BlackClock "0:00:03"]
[Board "37"]

1. d4 {[%clk 0:02:56]}  Nf6 {[%clk 0:02:59]} 2. c4 {[%clk 0:02:56]}  e6 {[%clk 0:02:59]} 3. g3 {[%clk 0:02:55]}  d5 {[%clk 0:02:58]} 4. Nf3 {[%clk 0:02:52]}  dxc4 {[%clk 0:02:56]} 5. Bg2 {[%clk 0:02:51]}  Nc6 {[%clk 0:02:53]} 6. Qa4 {[%clk 0:02:49]}  Bb4+ {[%clk 0:02:49]} 7. Bd2 {[%clk 0:02:48]}  Bxd2+ {[%clk 0:02:45]} 8. Nbxd2 {[%clk 0:02:48]}  O-O {[%clk 0:02:40]} 9. Qxc4 {[%clk 0:02:46]}  a6 {[%clk 0:02:26]} 10. Rc1 {[%clk 0:02:45]}  Rb8 {[%clk 0:02:18]} 11. O-O {[%clk 0:02:43]}  Re8 {[%clk 0:02:17]} 12. e3 {[%clk 0:02:40]}  Qd6 {[%clk 0:02:07]} 13. a3 {[%clk 0:02:38]}  Bd7 {[%clk 0:02:04]} 14. Qc5 {[%clk 0:02:38]}  e5 {[%clk 0:01:56]} 15. dxe5 {[%clk 0:02:30]}  Nxe5 {[%clk 0:01:54]} 16. Qxc7 {[%clk 0:02:28]}  Qxc7 {[%clk 0:01:40]} 17. Rxc7 {[%clk 0:02:29]}  Bb5 {[%clk 0:01:40]} 18. Ra1 {[%clk 0:02:10]}  Nd3 {[%clk 0:01:36]} 19. Nd4 {[%clk 0:01:58]}  Bd7 {[%clk 0:01:10]} 20. b4 {[%clk 0:01:53]}  b5 {[%clk 0:01:02]} 21. Rc3 {[%clk 0:01:47]}  Ne5 {[%clk 0:00:58]} 22. Rac1 {[%clk 0:01:46]}  h5 {[%clk 0:00:48]} 23. h3 {[%clk 0:01:46]}  Be6 {[%clk 0:00:32]} 24. Nxe6 {[%clk 0:01:43]}  Rxe6 {[%clk 0:00:32]} 25. f4 {[%clk 0:01:41]}  Nc4 {[%clk 0:00:27]} 26. Nxc4 {[%clk 0:01:39]}  bxc4 {[%clk 0:00:27]} 27. Kf2 {[%clk 0:01:26]}  Rd8 {[%clk 0:00:19]} 28. R1c2 {[%clk 0:01:24]}  Ne4+ {[%clk 0:00:12]} 29. Bxe4 {[%clk 0:01:23]}  Rxe4 {[%clk 0:00:13]} 30. Rxc4 {[%clk 0:01:22]}  Re6 {[%clk 0:00:09]} 31. Rc8 {[%clk 0:01:21]}  Rxc8 {[%clk 0:00:07]} 32. Rxc8+ {[%clk 0:01:22]}  Kh7 {[%clk 0:00:08]} 33. Ra8 {[%clk 0:01:22]}  Rc6 {[%clk 0:00:08]} 34. Kf3 {[%clk 0:01:22]}  g6 {[%clk 0:00:06]} 35. g4 {[%clk 0:01:21]}  hxg4+ {[%clk 0:00:06]} 36. hxg4 {[%clk 0:01:22]}  Kg7 {[%clk 0:00:06]} 37. g5 {[%clk 0:01:23]}  Kh7 {[%clk 0:00:04]} 38. Ra7 {[%clk 0:01:23]}  Kg7 {[%clk 0:00:04]} 39. Ke4 {[%clk 0:01:23]}  Re6+ {[%clk 0:00:03]} 40. Kd4 {[%clk 0:01:23]}  Rd6+ {[%clk 0:00:04]} 41. Kc5 {[%clk 0:01:23]}  Re6 {[%clk 0:00:04]} 42. a4 {[%clk 0:01:22]}  Rxe3 {[%clk 0:00:03]} 43. Rxa6 {[%clk 0:01:22]}  Re4 {[%clk 0:00:03]} 44. b5 {[%clk 0:01:22]}  Rxf4 {[%clk 0:00:03]} 45. b6 {[%clk 0:01:22]}  Rf1 {[%clk 0:00:02]} 46. b7 {[%clk 0:01:22]}  Rc1+ {[%clk 0:00:03]} 47. Kb6 {[%clk 0:01:21]}  Rb1+ {[%clk 0:00:03]} 48. Ka7 {[%clk 0:01:21]}  Kh7 {[%clk 0:00:02]} 49. b8=Q {[%clk 0:01:20]}  Rxb8 {[%clk 0:00:02]} 50. Kxb8 {[%clk 0:01:21]}  Kg7 {[%clk 0:00:03]} 51. Rf6 {[%clk 0:01:21]}  Kh7 {[%clk 0:00:04]} 52. Rxf7+ {[%clk 0:01:20]}  Kg8 {[%clk 0:00:03]} 53. Rb7 {[%clk 0:01:21]} 1-0


[Site "https://www.chess.com"]

[Event "Titled Tuesday Blitz November 14 Late 2023"]
[White "Jamal-Jamal-Jamal"]
[Black "Gubajdullin, Alexei"]
[BlackFideId "4141202"]
[WhiteElo "2450"]
[BlackElo "2631"]
[Result "1/2-1/2"]
[Round "8"]
[TimeControl "180+1"]
[Date "2023.11.14"]
[WhiteClock "0:00:04"]
[BlackClock "0:00:06"]
[Board "39"]

1. e4 {[%clk 0:03:00]}  g6 {[%clk 0:02:57]} 2. d4 {[%clk 0:03:00]}  Bg7 {[%clk 0:02:57]} 3. f4 {[%clk 0:02:56]}  d6 {[%clk 0:02:56]} 4. Nc3 {[%clk 0:02:54]}  a6 {[%clk 0:02:55]} 5. Nf3 {[%clk 0:02:54]}  b5 {[%clk 0:02:54]} 6. Bd3 {[%clk 0:02:54]}  Nd7 {[%clk 0:02:52]} 7. Ne2 {[%clk 0:02:52]}  c5 {[%clk 0:02:50]} 8. c3 {[%clk 0:02:53]}  Ngf6 {[%clk 0:02:48]} 9. Be3 {[%clk 0:02:50]}  Bb7 {[%clk 0:02:45]} 10. Ng3 {[%clk 0:02:50]}  cxd4 {[%clk 0:02:41]} 11. cxd4 {[%clk 0:02:49]}  d5 {[%clk 0:02:41]} 12. e5 {[%clk 0:02:48]}  Ne4 {[%clk 0:02:41]} 13. O-O {[%clk 0:02:47]}  e6 {[%clk 0:02:35]} 14. Nd2 {[%clk 0:02:40]}  Nxd2 {[%clk 0:02:30]} 15. Qxd2 {[%clk 0:02:40]}  O-O {[%clk 0:02:22]} 16. b3 {[%clk 0:02:31]}  Qb6 {[%clk 0:02:20]} 17. Kh1 {[%clk 0:02:30]}  Rfc8 {[%clk 0:02:18]} 18. Ne2 {[%clk 0:02:24]}  Bf8 {[%clk 0:02:09]} 19. g4 {[%clk 0:02:22]}  f5 {[%clk 0:01:57]} 20. gxf5 {[%clk 0:02:08]}  exf5 {[%clk 0:01:56]} 21. Ng3 {[%clk 0:01:58]}  Qe6 {[%clk 0:01:54]} 22. Rac1 {[%clk 0:01:55]}  Ba3 {[%clk 0:01:44]} 23. Rxc8+ {[%clk 0:01:54]}  Rxc8 {[%clk 0:01:43]} 24. Rg1 {[%clk 0:01:53]}  Kh8 {[%clk 0:01:40]} 25. Qe2 {[%clk 0:01:50]}  Nc5 {[%clk 0:01:36]} 26. Bb1 {[%clk 0:01:39]}  Ne4 {[%clk 0:01:33]} 27. Nxe4 {[%clk 0:01:37]}  dxe4 {[%clk 0:01:31]} 28. h3 {[%clk 0:01:31]}  Rc3 {[%clk 0:01:24]} 29. Kh2 {[%clk 0:01:29]}  Qd5 {[%clk 0:01:09]} 30. Rd1 {[%clk 0:01:27]}  Bf8 {[%clk 0:01:01]} 31. Qd2 {[%clk 0:01:21]}  b4 {[%clk 0:01:00]} 32. Qf2 {[%clk 0:01:16]}  Be7 {[%clk 0:00:56]} 33. Re1 {[%clk 0:01:14]}  a5 {[%clk 0:00:53]} 34. Rd1 {[%clk 0:01:00]}  Bc6 {[%clk 0:00:50]} 35. Bc2 {[%clk 0:00:59]}  Bb5 {[%clk 0:00:48]} 36. Qd2 {[%clk 0:00:55]}  Bd3 {[%clk 0:00:47]} 37. Bxd3 {[%clk 0:00:53]}  exd3 {[%clk 0:00:47]} 38. Rc1 {[%clk 0:00:52]}  Qc6 {[%clk 0:00:16]} 39. Rxc3 {[%clk 0:00:51]}  Qxc3 {[%clk 0:00:16]} 40. d5 {[%clk 0:00:51]}  Bc5 {[%clk 0:00:16]} 41. e6 {[%clk 0:00:44]}  Bxe3 {[%clk 0:00:13]} 42. Qxe3 {[%clk 0:00:45]}  d2 {[%clk 0:00:10]} 43. Qxc3+ {[%clk 0:00:41]}  bxc3 {[%clk 0:00:10]} 44. e7 {[%clk 0:00:42]}  d1=Q {[%clk 0:00:09]} 45. e8=Q+ {[%clk 0:00:42]}  Kg7 {[%clk 0:00:09]} 46. Qe5+ {[%clk 0:00:41]}  Kh6 {[%clk 0:00:09]} 47. Qxc3 {[%clk 0:00:41]}  Qxd5 {[%clk 0:00:09]} 48. Kg3 {[%clk 0:00:37]}  Qe4 {[%clk 0:00:09]} 49. h4 {[%clk 0:00:33]}  Qb4 {[%clk 0:00:08]} 50. Qe5 {[%clk 0:00:26]}  Kh5 {[%clk 0:00:07]} 51. Qe2+ {[%clk 0:00:25]}  Kh6 {[%clk 0:00:07]} 52. h5 {[%clk 0:00:23]}  Qc3+ {[%clk 0:00:05]} 53. Kg2 {[%clk 0:00:17]}  Qd4 {[%clk 0:00:05]} 54. hxg6 {[%clk 0:00:17]}  hxg6 {[%clk 0:00:05]} 55. Kg3 {[%clk 0:00:17]}  Qd5 {[%clk 0:00:04]} 56. Qh2+ {[%clk 0:00:16]}  Kg7 {[%clk 0:00:04]} 57. Qb2+ {[%clk 0:00:17]}  Kf7 {[%clk 0:00:03]} 58. Qe2 {[%clk 0:00:16]}  Qd4 {[%clk 0:00:03]} 59. Kf3 {[%clk 0:00:09]}  Qc3+ {[%clk 0:00:02]} 60. Kf2 {[%clk 0:00:09]}  Kg7 {[%clk 0:00:02]} 61. Qe7+ {[%clk 0:00:09]}  Kh6 {[%clk 0:00:02]} 62. Qf8+ {[%clk 0:00:09]}  Kh7 {[%clk 0:00:01]} 63. Qf7+ {[%clk 0:00:09]}  Kh6 {[%clk 0:00:01]} 64. Qf8+ {[%clk 0:00:10]}  Kh5 {[%clk 0:00:01]} 65. Qe7 {[%clk 0:00:07]}  Qd4+ {[%clk 0:00:01]} 66. Kf3 {[%clk 0:00:07]}  Qd3+ {[%clk 0:00:01]} 67. Kf2 {[%clk 0:00:07]}  Qd2+ {[%clk 0:00:02]} 68. Kf3 {[%clk 0:00:07]}  Qd1+ {[%clk 0:00:03]} 69. Kf2 {[%clk 0:00:07]}  Qc2+ {[%clk 0:00:04]} 70. Kf3 {[%clk 0:00:06]}  Qc3+ {[%clk 0:00:04]} 71. Kf2 {[%clk 0:00:06]}  Qd4+ {[%clk 0:00:04]} 72. Kf3 {[%clk 0:00:06]}  Qd1+ {[%clk 0:00:04]} 73. Kf2 {[%clk 0:00:05]}  Qd2+ {[%clk 0:00:04]} 74. Kf3 {[%clk 0:00:06]}  Qd3+ {[%clk 0:00:04]} 75. Kf2 {[%clk 0:00:06]}  Kg4 {[%clk 0:00:05]} 76. Qg5+ {[%clk 0:00:06]}  Kh3 {[%clk 0:00:05]} 77. Qg2+ {[%clk 0:00:02]}  Kh4 {[%clk 0:00:04]} 78. Qxg6 {[%clk 0:00:03]}  Qd4+ {[%clk 0:00:04]} 79. Kf3 {[%clk 0:00:03]}  Qe4+ {[%clk 0:00:04]} 80. Kf2 {[%clk 0:00:03]}  Qxf4+ {[%clk 0:00:04]} 81. Kg2 {[%clk 0:00:04]}  Qe4+ {[%clk 0:00:05]} 82. Kf2 {[%clk 0:00:04]}  Qf4+ {[%clk 0:00:05]} 83. Kg2 {[%clk 0:00:04]}  Qd2+ {[%clk 0:00:05]} 84. Kf3 {[%clk 0:00:03]}  Qd3+ {[%clk 0:00:06]} 85. Kf2 {[%clk 0:00:02]}  Qe4 {[%clk 0:00:06]} 86. Qh6+ {[%clk 0:00:02]}  Kg4 {[%clk 0:00:06]} 87. Qg6+ {[%clk 0:00:02]}  Kh4 {[%clk 0:00:06]} 88. Qh6+ {[%clk 0:00:03]}  Kg4 {[%clk 0:00:06]} 89. Qg6+ {[%clk 0:00:04]}  Kh4 {[%clk 0:00:06]} 1/2-1/2


[Site "https://www.chess.com"]

[Event "Titled Tuesday Blitz November 14 Late 2023"]
[White "Esquivel Golcher, Luis Enrique"]
[Black "Golubev, Mikhail"]
[WhiteFideId "6600174"]
[BlackFideId "14100983"]
[WhiteElo "2415"]
[BlackElo "2621"]
[Result "1-0"]
[Round "8"]
[TimeControl "180+1"]
[Date "2023.11.14"]
[WhiteClock "0:00:34"]
[BlackClock "0:00:00"]
[Board "40"]

1. e4 {[%clk 0:02:51]}  c5 {[%clk 0:02:59]} 2. Nf3 {[%clk 0:02:50]}  d6 {[%clk 0:02:59]} 3. d4 {[%clk 0:02:49]}  Nf6 {[%clk 0:02:59]} 4. Nc3 {[%clk 0:02:45]}  cxd4 {[%clk 0:03:00]} 5. Nxd4 {[%clk 0:02:43]}  g6 {[%clk 0:03:00]} 6. Be2 {[%clk 0:02:42]}  Bg7 {[%clk 0:03:00]} 7. O-O {[%clk 0:02:43]}  O-O {[%clk 0:02:59]} 8. Kh1 {[%clk 0:02:43]}  Nc6 {[%clk 0:02:56]} 9. Nb3 {[%clk 0:02:43]}  Be6 {[%clk 0:02:54]} 10. f4 {[%clk 0:02:39]}  Qc8 {[%clk 0:02:54]} 11. Bf3 {[%clk 0:02:34]}  Bc4 {[%clk 0:02:47]} 12. Re1 {[%clk 0:02:26]}  Rd8 {[%clk 0:02:33]} 13. Nd5 {[%clk 0:02:26]}  e6 {[%clk 0:02:18]} 14. Nxf6+ {[%clk 0:02:22]}  Bxf6 {[%clk 0:02:19]} 15. c3 {[%clk 0:02:23]}  e5 {[%clk 0:02:11]} 16. Bg4 {[%clk 0:02:19]}  Qc7 {[%clk 0:02:00]} 17. Be3 {[%clk 0:02:15]}  d5 {[%clk 0:01:58]} 18. exd5 {[%clk 0:02:09]}  exf4 {[%clk 0:01:49]} 19. d6 {[%clk 0:02:01]}  Rxd6 {[%clk 0:01:19]} 20. Bxf4 {[%clk 0:02:01]}  Rxd1 {[%clk 0:01:19]} 21. Bxc7 {[%clk 0:02:01]}  Rxa1 {[%clk 0:01:19]} 22. Rxa1 {[%clk 0:01:47]}  a5 {[%clk 0:01:06]} 23. Bf3 {[%clk 0:01:44]}  a4 {[%clk 0:01:03]} 24. Nd2 {[%clk 0:01:39]}  Be6 {[%clk 0:01:02]} 25. Ne4 {[%clk 0:01:37]}  Bg7 {[%clk 0:00:44]} 26. Nc5 {[%clk 0:01:33]}  a3 {[%clk 0:00:43]} 27. bxa3 {[%clk 0:01:28]}  Rxa3 {[%clk 0:00:40]} 28. Nxe6 {[%clk 0:01:22]}  fxe6 {[%clk 0:00:40]} 29. Bg4 {[%clk 0:01:19]}  Kf7 {[%clk 0:00:22]} 30. Bd6 {[%clk 0:01:15]}  Rxc3 {[%clk 0:00:18]} 31. Rf1+ {[%clk 0:01:15]}  Bf6 {[%clk 0:00:16]} 32. Bf3 {[%clk 0:01:09]}  Kg7 {[%clk 0:00:13]} 33. Bg4 {[%clk 0:01:03]}  e5 {[%clk 0:00:11]} 34. h3 {[%clk 0:01:02]}  h5 {[%clk 0:00:10]} 35. Be6 {[%clk 0:01:02]}  Nd4 {[%clk 0:00:09]} 36. Bd5 {[%clk 0:00:57]}  Nf5 {[%clk 0:00:09]} 37. Bb4 {[%clk 0:00:45]}  Rd3 {[%clk 0:00:09]} 38. Bxb7 {[%clk 0:00:40]}  Ng3+ {[%clk 0:00:07]} 39. Kg1 {[%clk 0:00:40]}  Nxf1 {[%clk 0:00:08]} 40. Kxf1 {[%clk 0:00:41]}  e4 {[%clk 0:00:08]} 41. a3 {[%clk 0:00:38]}  Rd4 {[%clk 0:00:06]} 42. Ke2 {[%clk 0:00:38]}  Bg5 {[%clk 0:00:05]} 43. Bc3 {[%clk 0:00:37]}  Bf6 {[%clk 0:00:03]} 44. Bxd4 {[%clk 0:00:37]}  Bxd4 {[%clk 0:00:04]} 45. Bxe4 {[%clk 0:00:38]}  Kf6 {[%clk 0:00:04]} 46. Kd3 {[%clk 0:00:37]}  Bc5 {[%clk 0:00:03]} 47. a4 {[%clk 0:00:38]}  g5 {[%clk 0:00:03]} 48. Kc4 {[%clk 0:00:37]}  Bf2 {[%clk 0:00:03]} 49. Kb5 {[%clk 0:00:38]}  Ke5 {[%clk 0:00:02]} 50. Bf3 {[%clk 0:00:37]}  h4 {[%clk 0:00:00]} 51. Kc6 {[%clk 0:00:34]} 1-0


[Site "https://www.chess.com"]

[Event "Titled Tuesday Blitz November 14 Late 2023"]
[White "Fiorito, Francisco"]
[Black "VitaliyChayka"]
[WhiteFideId "180165"]
[WhiteElo "2605"]
[BlackElo "2357"]
[Result "1-0"]
[Round "8"]
[TimeControl "180+1"]
[Date "2023.11.14"]
[WhiteClock "0:01:06"]
[BlackClock "0:00:00"]
[Board "41"]

1. Nf3 {[%clk 0:03:00]}  d6 {[%clk 0:03:00]} 2. d4 {[%clk 0:02:58]}  Nd7 {[%clk 0:02:59]} 3. g3 {[%clk 0:02:56]}  e5 {[%clk 0:02:59]} 4. dxe5 {[%clk 0:02:57]}  Nxe5 {[%clk 0:02:59]} 5. Nxe5 {[%clk 0:02:56]}  dxe5 {[%clk 0:03:00]} 6. Qxd8+ {[%clk 0:02:56]}  Kxd8 {[%clk 0:03:01]} 7. Bg2 {[%clk 0:02:57]}  c6 {[%clk 0:03:00]} 8. Nc3 {[%clk 0:02:56]}  Be6 {[%clk 0:03:00]} 9. Be3 {[%clk 0:02:53]}  Kc7 {[%clk 0:02:56]} 10. O-O-O {[%clk 0:02:52]}  Nf6 {[%clk 0:02:48]} 11. h3 {[%clk 0:02:49]}  Bb4 {[%clk 0:02:45]} 12. Ne4 {[%clk 0:02:31]}  Nxe4 {[%clk 0:02:44]} 13. Bxe4 {[%clk 0:02:31]}  f5 {[%clk 0:02:41]} 14. Bg2 {[%clk 0:02:28]}  Rhd8 {[%clk 0:02:12]} 15. a3 {[%clk 0:02:26]}  Be7 {[%clk 0:02:06]} 16. Bd2 {[%clk 0:02:16]}  Rd7 {[%clk 0:01:59]} 17. Bc3 {[%clk 0:02:15]}  Bf6 {[%clk 0:01:57]} 18. b3 {[%clk 0:02:09]}  Rad8 {[%clk 0:01:56]} 19. Rxd7+ {[%clk 0:02:07]}  Rxd7 {[%clk 0:01:56]} 20. e3 {[%clk 0:02:05]}  Bd5 {[%clk 0:01:53]} 21. Rg1 {[%clk 0:01:59]}  Bxg2 {[%clk 0:01:53]} 22. Rxg2 {[%clk 0:02:00]}  Kd6 {[%clk 0:01:48]} 23. Rg1 {[%clk 0:01:58]}  Ke6 {[%clk 0:01:48]} 24. a4 {[%clk 0:01:54]}  e4 {[%clk 0:01:43]} 25. Bxf6 {[%clk 0:01:53]}  Kxf6 {[%clk 0:01:44]} 26. Rd1 {[%clk 0:01:43]}  Rxd1+ {[%clk 0:01:44]} 27. Kxd1 {[%clk 0:01:44]}  g5 {[%clk 0:01:34]} 28. Kd2 {[%clk 0:01:44]}  Ke5 {[%clk 0:01:33]} 29. Kc3 {[%clk 0:01:43]}  h5 {[%clk 0:01:20]} 30. Kc4 {[%clk 0:01:42]}  b6 {[%clk 0:01:20]} 31. a5 {[%clk 0:01:37]}  f4 {[%clk 0:01:05]} 32. b4 {[%clk 0:01:29]}  f3 {[%clk 0:00:19]} 33. g4 {[%clk 0:01:15]}  h4 {[%clk 0:00:16]} 34. c3 {[%clk 0:01:15]}  bxa5 {[%clk 0:00:12]} 35. bxa5 {[%clk 0:01:14]}  Kd6 {[%clk 0:00:11]} 36. Kd4 {[%clk 0:01:08]}  a6 {[%clk 0:00:00]} 37. c4 {[%clk 0:01:06]} 1-0


[Site "https://www.chess.com"]